[Event "December 5 Early 2023"]
[Site "https://www.chess.com"]
[Date "2023.12.05"]
[Round "11"]
[White "Gavrilov, Maxim"]
[Black "Kolmagorov, Alexey"]
[Result "1-0"]
[Board "98"]
[TimeControl "180+1"]
[WhiteFideId "24271454"]
[BlackFideId "34129402"]
[WhiteElo "2515"]
[BlackElo "2380"]
[WhiteTeam "RUS"]
[BlackTeam "RUS"]
[WhiteClock "0:00:11"]
[BlackClock "0:00:01"]

1. d4 {[%clk 0:02:58]}  Nf6 {[%clk 0:03:00]} 2. c4 {[%clk 0:02:58]}  e6 {[%clk 0:03:00]} 3. Nc3 {[%clk 0:02:58]}  d5 {[%clk 0:03:00]} 4. cxd5 {[%clk 0:02:56]}  exd5 {[%clk 0:03:01]} 5. Bg5 {[%clk 0:02:56]}  c6 {[%clk 0:03:00]} 6. e3 {[%clk 0:02:57]}  h6 {[%clk 0:03:00]} 7. Bh4 {[%clk 0:02:56]}  Be7 {[%clk 0:03:01]} 8. Bd3 {[%clk 0:02:57]}  Nbd7 {[%clk 0:03:01]} 9. Qc2 {[%clk 0:02:56]}  O-O {[%clk 0:03:01]} 10. Nf3 {[%clk 0:02:57]}  Re8 {[%clk 0:03:01]} 11. h3 {[%clk 0:02:56]}  Ne4 {[%clk 0:03:00]} 12. Bxe7 {[%clk 0:02:49]}  Qxe7 {[%clk 0:03:00]} 13. O-O {[%clk 0:02:42]}  Ndf6 {[%clk 0:02:58]} 14. Ne5 {[%clk 0:02:41]}  g6 {[%clk 0:02:45]} 15. f3 {[%clk 0:02:28]}  Nd6 {[%clk 0:02:44]} 16. Rae1 {[%clk 0:02:25]}  c5 {[%clk 0:02:24]} 17. dxc5 {[%clk 0:01:54]}  Qxe5 {[%clk 0:02:24]} 18. cxd6 {[%clk 0:01:54]}  Qxd6 {[%clk 0:02:25]} 19. Nb5 {[%clk 0:01:54]}  Qb6 {[%clk 0:02:10]} 20. Nd4 {[%clk 0:01:04]}  Bd7 {[%clk 0:02:05]} 21. Bxg6 {[%clk 0:00:56]}  fxg6 {[%clk 0:02:02]} 22. Qxg6+ {[%clk 0:00:55]}  Kh8 {[%clk 0:01:55]} 23. Qxh6+ {[%clk 0:00:44]}  Nh7 {[%clk 0:01:55]} 24. Qh5 {[%clk 0:00:38]}  Qd6 {[%clk 0:01:02]} 25. f4 {[%clk 0:00:38]}  Re4 {[%clk 0:00:46]} 26. Nf3 {[%clk 0:00:36]}  Rae8 {[%clk 0:00:26]} 27. Ng5 {[%clk 0:00:33]}  R4e7 {[%clk 0:00:21]} 28. Nf7+ {[%clk 0:00:33]}  Rxf7 {[%clk 0:00:22]} 29. Qxf7 {[%clk 0:00:34]}  Rf8 {[%clk 0:00:15]} 30. Qh5 {[%clk 0:00:33]}  Be8 {[%clk 0:00:07]} 31. Qh4 {[%clk 0:00:27]}  Bg6 {[%clk 0:00:07]} 32. Rc1 {[%clk 0:00:15]}  Be4 {[%clk 0:00:06]} 33. Rfd1 {[%clk 0:00:16]}  Rg8 {[%clk 0:00:06]} 34. g4 {[%clk 0:00:14]}  Qb6 {[%clk 0:00:06]} 35. Qf2 {[%clk 0:00:13]}  Nf6 {[%clk 0:00:04]} 36. Qd2 {[%clk 0:00:14]}  Nxg4 {[%clk 0:00:03]} 37. hxg4 {[%clk 0:00:13]}  Rxg4+ {[%clk 0:00:04]} 38. Kf1 {[%clk 0:00:14]}  Qh6 {[%clk 0:00:04]} 39. Qd4+ {[%clk 0:00:13]}  Kh7 {[%clk 0:00:03]} 40. Rc7+ {[%clk 0:00:13]}  Kg6 {[%clk 0:00:03]} 41. f5+ {[%clk 0:00:11]}  Kg5 {[%clk 0:00:03]} 42. Qg7+ {[%clk 0:00:09]}  Qxg7 {[%clk 0:00:03]} 43. Rxg7+ {[%clk 0:00:10]}  Kxf5 {[%clk 0:00:03]} 44. Rxg4 {[%clk 0:00:10]}  Kxg4 {[%clk 0:00:04]} 45. Rc1 {[%clk 0:00:10]}  Kf3 {[%clk 0:00:04]} 46. Rc3 {[%clk 0:00:10]}  b6 {[%clk 0:00:04]} 47. Ke1 {[%clk 0:00:10]}  a5 {[%clk 0:00:04]} 48. Kd2 {[%clk 0:00:11]}  b5 {[%clk 0:00:04]} 49. Rc5 {[%clk 0:00:11]}  a4 {[%clk 0:00:04]} 50. Rxb5 {[%clk 0:00:11]}  Kf2 {[%clk 0:00:02]} 51. Rb4 {[%clk 0:00:11]}  Bb1 {[%clk 0:00:02]} 52. Rxa4 {[%clk 0:00:11]}  Be4 {[%clk 0:00:01]} 53. Rd4 {[%clk 0:00:11]} 1-0

[Event "December 5 Early 2023"]
[Site "https://www.chess.com"]
[Date "2023.12.05"]
[Round "11"]
[White "Petrukhina, Olga"]
[Black "Reprintsev, Alexander"]
[Result "0-1"]
[Board "102"]
[TimeControl "180+1"]
[WhiteFideId "13703935"]
[BlackFideId "14100541"]
[WhiteElo "2259"]
[BlackElo "2492"]
[WhiteTeam "KAZ"]
[BlackTeam "UKR"]
[WhiteClock "0:00:00"]
[BlackClock "0:01:15"]

1. d4 {[%clk 0:03:00]}  d5 {[%clk 0:02:59]} 2. c4 {[%clk 0:02:57]}  e5 {[%clk 0:02:59]} 3. dxe5 {[%clk 0:02:57]}  d4 {[%clk 0:02:59]} 4. Nf3 {[%clk 0:02:57]}  Nc6 {[%clk 0:02:59]} 5. Nbd2 {[%clk 0:02:57]}  a5 {[%clk 0:02:47]} 6. Nb3 {[%clk 0:02:53]}  Bg4 {[%clk 0:02:44]} 7. Nbxd4 {[%clk 0:02:37]}  Bc5 {[%clk 0:02:42]} 8. e3 {[%clk 0:02:19]}  Nxd4 {[%clk 0:02:33]} 9. exd4 {[%clk 0:02:17]}  Bxf3 {[%clk 0:02:33]} 10. Qxf3 {[%clk 0:01:58]}  Qxd4 {[%clk 0:02:33]} 11. a3 {[%clk 0:01:39]}  Qxe5+ {[%clk 0:02:32]} 12. Qe2 {[%clk 0:01:34]}  Bd4 {[%clk 0:02:28]} 13. Qxe5+ {[%clk 0:01:32]}  Bxe5 {[%clk 0:02:29]} 14. Be2 {[%clk 0:01:27]}  Nf6 {[%clk 0:02:27]} 15. O-O {[%clk 0:01:26]}  O-O-O {[%clk 0:02:27]} 16. Rb1 {[%clk 0:01:20]}  Ne4 {[%clk 0:02:14]} 17. Bg4+ {[%clk 0:01:01]}  Kb8 {[%clk 0:02:12]} 18. Bf3 {[%clk 0:00:58]}  Nd2 {[%clk 0:02:00]} 19. Bxd2 {[%clk 0:00:58]}  Rxd2 {[%clk 0:02:01]} 20. b4 {[%clk 0:00:56]}  a4 {[%clk 0:02:00]} 21. Rfe1 {[%clk 0:00:40]}  f6 {[%clk 0:02:00]} 22. b5 {[%clk 0:00:31]}  Rhd8 {[%clk 0:01:56]} 23. Bd5 {[%clk 0:00:25]}  Bd4 {[%clk 0:01:49]} 24. Rf1 {[%clk 0:00:19]}  Re8 {[%clk 0:01:48]} 25. Bf3 {[%clk 0:00:14]}  Bc5 {[%clk 0:01:47]} 26. Ra1 {[%clk 0:00:12]}  Ka7 {[%clk 0:01:44]} 27. g3 {[%clk 0:00:11]}  Kb6 {[%clk 0:01:43]} 28. Kg2 {[%clk 0:00:11]}  f5 {[%clk 0:01:30]} 29. Rad1 {[%clk 0:00:11]}  Red8 {[%clk 0:01:29]} 30. Bd5 {[%clk 0:00:08]}  Rxd1 {[%clk 0:01:26]} 31. Rxd1 {[%clk 0:00:09]}  c6 {[%clk 0:01:25]} 32. bxc6 {[%clk 0:00:08]}  bxc6 {[%clk 0:01:25]} 33. Bf3 {[%clk 0:00:09]}  Rxd1 {[%clk 0:01:23]} 34. Bxd1 {[%clk 0:00:09]}  Ka5 {[%clk 0:01:23]} 35. Kf3 {[%clk 0:00:05]}  Bxa3 {[%clk 0:01:23]} 36. Kf4 {[%clk 0:00:05]}  g6 {[%clk 0:01:18]} 37. Ke5 {[%clk 0:00:04]}  Bb2+ {[%clk 0:01:16]} 38. Kd6 {[%clk 0:00:04]}  a3 {[%clk 0:01:17]} 39. Bb3 {[%clk 0:00:03]}  Kb4 {[%clk 0:01:17]} 40. Ba2 {[%clk 0:00:03]}  c5 {[%clk 0:01:18]} 41. h4 {[%clk 0:00:02]}  Bd4 {[%clk 0:01:17]} 42. f3 {[%clk 0:00:02]}  Bf2 {[%clk 0:01:17]} 43. g4 {[%clk 0:00:02]}  Bxh4 {[%clk 0:01:15]} 44. gxf5 {[%clk 0:00:02]}  gxf5 {[%clk 0:01:15]} 45. Ke5 {[%clk 0:00:00]}  Kc3 {[%clk 0:01:15]} 0-1

[Event "December 5 Early 2023"]
[Site "https://www.chess.com"]
[Date "2023.12.05"]
[Round "11"]
[White "Mirzoev, Azer"]
[Black "Vila Dupla, Aurelio"]
[Result "1-0"]
[Board "105"]
[TimeControl "180+1"]
[WhiteFideId "13400304"]
[BlackFideId "2203383"]
[WhiteElo "2606"]
[BlackElo "2215"]
[WhiteTeam "AZE"]
[BlackTeam "ESP"]
[WhiteClock "0:01:43"]
[BlackClock "0:00:00"]

1. c4 {[%clk 0:03:00]}  Nf6 {[%clk 0:02:58]} 2. Nc3 {[%clk 0:02:59]}  d5 {[%clk 0:02:59]} 3. cxd5 {[%clk 0:02:58]}  Nxd5 {[%clk 0:03:00]} 4. g3 {[%clk 0:02:59]}  e5 {[%clk 0:02:59]} 5. Bg2 {[%clk 0:02:58]}  Nb6 {[%clk 0:02:59]} 6. d3 {[%clk 0:02:57]}  Nc6 {[%clk 0:02:58]} 7. Bxc6+ {[%clk 0:02:56]}  bxc6 {[%clk 0:02:58]} 8. Nf3 {[%clk 0:02:56]}  Bd6 {[%clk 0:02:41]} 9. O-O {[%clk 0:02:56]}  O-O {[%clk 0:02:41]} 10. Qc2 {[%clk 0:02:55]}  f5 {[%clk 0:02:29]} 11. b3 {[%clk 0:02:50]}  Nd5 {[%clk 0:02:21]} 12. Bb2 {[%clk 0:02:50]}  Nb4 {[%clk 0:02:09]} 13. Qd2 {[%clk 0:02:43]}  Rb8 {[%clk 0:02:08]} 14. Na4 {[%clk 0:02:40]}  Qe7 {[%clk 0:01:51]} 15. a3 {[%clk 0:02:32]}  Nd5 {[%clk 0:01:49]} 16. Qc2 {[%clk 0:02:26]}  Bd7 {[%clk 0:01:43]} 17. b4 {[%clk 0:02:26]}  Kh8 {[%clk 0:01:41]} 18. Nc5 {[%clk 0:02:25]}  e4 {[%clk 0:01:20]} 19. dxe4 {[%clk 0:02:23]}  fxe4 {[%clk 0:01:20]} 20. Nxd7 {[%clk 0:02:15]}  Qxd7 {[%clk 0:01:12]} 21. Qxe4 {[%clk 0:02:15]}  Rbe8 {[%clk 0:01:08]} 22. Qc4 {[%clk 0:02:15]}  Rf5 {[%clk 0:00:38]} 23. Rac1 {[%clk 0:02:11]}  Nb6 {[%clk 0:00:31]} 24. Qc2 {[%clk 0:02:06]}  Rh5 {[%clk 0:00:30]} 25. Qxc6 {[%clk 0:02:00]}  Qxc6 {[%clk 0:00:26]} 26. Rxc6 {[%clk 0:02:01]}  Rxe2 {[%clk 0:00:26]} 27. Re1 {[%clk 0:01:58]}  Rxe1+ {[%clk 0:00:24]} 28. Nxe1 {[%clk 0:01:59]}  Rd5 {[%clk 0:00:22]} 29. Kf1 {[%clk 0:01:56]}  Rd2 {[%clk 0:00:21]} 30. Rc2 {[%clk 0:01:55]}  Rxc2 {[%clk 0:00:17]} 31. Nxc2 {[%clk 0:01:56]}  Nc4 {[%clk 0:00:15]} 32. Bc1 {[%clk 0:01:56]}  Kg8 {[%clk 0:00:11]} 33. Ke2 {[%clk 0:01:56]}  Kf7 {[%clk 0:00:11]} 34. f4 {[%clk 0:01:51]}  c5 {[%clk 0:00:10]} 35. Kd3 {[%clk 0:01:50]}  Nb6 {[%clk 0:00:09]} 36. bxc5 {[%clk 0:01:46]}  Bxc5 {[%clk 0:00:10]} 37. Be3 {[%clk 0:01:45]}  Bxe3 {[%clk 0:00:09]} 38. Nxe3 {[%clk 0:01:45]}  g6 {[%clk 0:00:07]} 39. Nc4 {[%clk 0:01:44]}  Na4 {[%clk 0:00:04]} 40. Kd4 {[%clk 0:01:43]}  Ke6 {[%clk 0:00:05]} 41. g4 {[%clk 0:01:43]}  h5 {[%clk 0:00:04]} 42. h3 {[%clk 0:01:43]}  hxg4 {[%clk 0:00:00]} 43. hxg4 {[%clk 0:01:43]} 1-0

[Event "December 5 Early 2023"]
[Site "https://www.chess.com"]
[Date "2023.12.05"]
[Round "11"]
[White "Marcziter, Dmitrii"]
[Black "Chernomordik, Pavel"]
[Result "0-1"]
[Board "107"]
[TimeControl "180+1"]
[WhiteFideId "13900765"]
[BlackFideId "2804530"]
[WhiteElo "2379"]
[BlackElo "2499"]
[WhiteTeam "GER"]
[BlackTeam "ISR"]
[WhiteClock "0:00:08"]
[BlackClock "0:00:53"]

1. d4 {[%clk 0:03:00]}  g6 {[%clk 0:02:59]} 2. c4 {[%clk 0:03:00]}  Bg7 {[%clk 0:02:59]} 3. Nf3 {[%clk 0:03:01]}  d6 {[%clk 0:02:59]} 4. Nc3 {[%clk 0:02:59]}  Nc6 {[%clk 0:02:59]} 5. h3 {[%clk 0:02:56]}  e5 {[%clk 0:02:57]} 6. Bg5 {[%clk 0:02:54]}  f6 {[%clk 0:02:55]} 7. Bc1 {[%clk 0:02:53]}  Nge7 {[%clk 0:02:43]} 8. e4 {[%clk 0:02:45]}  O-O {[%clk 0:02:42]} 9. Be2 {[%clk 0:02:40]}  f5 {[%clk 0:02:32]} 10. dxe5 {[%clk 0:02:37]}  fxe4 {[%clk 0:02:28]} 11. Nxe4 {[%clk 0:02:34]}  Nxe5 {[%clk 0:02:27]} 12. Nxe5 {[%clk 0:02:31]}  Bxe5 {[%clk 0:02:26]} 13. O-O {[%clk 0:02:29]}  Nf5 {[%clk 0:02:25]} 14. Bg5 {[%clk 0:02:26]}  Qe8 {[%clk 0:02:14]} 15. Qd2 {[%clk 0:02:04]}  Be6 {[%clk 0:02:02]} 16. Bd3 {[%clk 0:01:58]}  Qf7 {[%clk 0:01:58]} 17. Rac1 {[%clk 0:01:53]}  Bg7 {[%clk 0:01:54]} 18. Bf4 {[%clk 0:01:33]}  h6 {[%clk 0:01:47]} 19. Bh2 {[%clk 0:01:30]}  Kh7 {[%clk 0:01:43]} 20. b3 {[%clk 0:01:29]}  Nd4 {[%clk 0:01:40]} 21. Kh1 {[%clk 0:01:24]}  Rae8 {[%clk 0:01:31]} 22. Rce1 {[%clk 0:01:22]}  Bxh3 {[%clk 0:01:26]} 23. gxh3 {[%clk 0:01:12]}  Qf3+ {[%clk 0:01:23]} 24. Kg1 {[%clk 0:01:12]}  Qxh3 {[%clk 0:01:23]} 25. f4 {[%clk 0:01:06]}  Nf3+ {[%clk 0:01:20]} 26. Rxf3 {[%clk 0:01:06]}  Qxf3 {[%clk 0:01:19]} 27. Nf2 {[%clk 0:00:31]}  Bd4 {[%clk 0:01:10]} 28. Re2 {[%clk 0:00:24]}  Rxe2 {[%clk 0:01:01]} 29. Qxe2 {[%clk 0:00:21]}  Bxf2+ {[%clk 0:01:00]} 30. Qxf2 {[%clk 0:00:17]}  Qxd3 {[%clk 0:01:00]} 31. Bg3 {[%clk 0:00:18]}  Re8 {[%clk 0:00:59]} 32. f5 {[%clk 0:00:16]}  gxf5 {[%clk 0:00:57]} 33. Bf4 {[%clk 0:00:15]}  Re2 {[%clk 0:00:56]} 34. Qf1 {[%clk 0:00:12]}  Qd4+ {[%clk 0:00:54]} 35. Kh1 {[%clk 0:00:11]}  Qe4+ {[%clk 0:00:53]} 36. Kg1 {[%clk 0:00:08]}  Re1 {[%clk 0:00:53]} 0-1

[Event "December 5 Early 2023"]
[Site "https://www.chess.com"]
[Date "2023.12.05"]
[Round "11"]
[White "Hernandez Jimenez, Alexander Andres"]
[Black "Shinkarev, M"]
[Result "0-1"]
[Board "109"]
[TimeControl "180+1"]
[WhiteFideId "3900452"]
[BlackFideId "4145348"]
[WhiteElo "2377"]
[BlackElo "2478"]
[WhiteTeam "VEN"]
[BlackTeam "RUS"]
[WhiteClock "0:00:12"]
[BlackClock "0:01:12"]

1. e4 {[%clk 0:02:54]}  e5 {[%clk 0:02:59]} 2. Nf3 {[%clk 0:02:53]}  d6 {[%clk 0:03:00]} 3. Bc4 {[%clk 0:02:51]}  Nd7 {[%clk 0:03:00]} 4. O-O {[%clk 0:02:51]}  c6 {[%clk 0:03:01]} 5. Re1 {[%clk 0:02:50]}  b5 {[%clk 0:03:00]} 6. Bb3 {[%clk 0:02:49]}  Nc5 {[%clk 0:03:00]} 7. d4 {[%clk 0:02:47]}  Nxb3 {[%clk 0:03:00]} 8. axb3 {[%clk 0:02:46]}  Qc7 {[%clk 0:03:01]} 9. c4 {[%clk 0:02:45]}  b4 {[%clk 0:02:59]} 10. dxe5 {[%clk 0:02:11]}  dxe5 {[%clk 0:02:58]} 11. Nbd2 {[%clk 0:02:12]}  Nf6 {[%clk 0:02:51]} 12. Nf1 {[%clk 0:02:12]}  h6 {[%clk 0:02:49]} 13. Ng3 {[%clk 0:02:12]}  Be7 {[%clk 0:02:44]} 14. Be3 {[%clk 0:02:11]}  O-O {[%clk 0:02:43]} 15. Qc2 {[%clk 0:02:01]}  Ng4 {[%clk 0:02:39]} 16. Bd2 {[%clk 0:01:51]}  Bc5 {[%clk 0:02:38]} 17. Re2 {[%clk 0:01:51]}  Rd8 {[%clk 0:02:30]} 18. h3 {[%clk 0:01:48]}  Nf6 {[%clk 0:02:29]} 19. Be3 {[%clk 0:01:47]}  Bd4 {[%clk 0:02:29]} 20. Nf5 {[%clk 0:01:45]}  Bxf5 {[%clk 0:02:25]} 21. exf5 {[%clk 0:01:45]}  c5 {[%clk 0:02:24]} 22. Ra6 {[%clk 0:01:35]}  e4 {[%clk 0:02:17]} 23. Nh2 {[%clk 0:01:27]}  Qc8 {[%clk 0:02:16]} 24. Rxf6 {[%clk 0:01:21]}  Bxf6 {[%clk 0:02:11]} 25. Ng4 {[%clk 0:01:20]}  Bd4 {[%clk 0:02:02]} 26. Qxe4 {[%clk 0:01:12]}  Re8 {[%clk 0:02:00]} 27. Qd5 {[%clk 0:01:08]}  h5 {[%clk 0:01:52]} 28. Nh2 {[%clk 0:00:52]}  Qd8 {[%clk 0:01:49]} 29. Qf3 {[%clk 0:00:47]}  Qh4 {[%clk 0:01:40]} 30. Nf1 {[%clk 0:00:44]}  Rad8 {[%clk 0:01:36]} 31. g3 {[%clk 0:00:42]}  Qxh3 {[%clk 0:01:32]} 32. Bxd4 {[%clk 0:00:35]}  Rxe2 {[%clk 0:01:19]} 33. Qxe2 {[%clk 0:00:35]}  cxd4 {[%clk 0:01:19]} 34. Qe7 {[%clk 0:00:28]}  Rf8 {[%clk 0:01:16]} 35. f6 {[%clk 0:00:27]}  Qe6 {[%clk 0:01:14]} 36. Qxa7 {[%clk 0:00:12]}  Qxf6 {[%clk 0:01:12]} 0-1

[Event "December 5 Early 2023"]
[Site "https://www.chess.com"]
[Date "2023.12.05"]
[Round "11"]
[White "Yurasova, Daria"]
[Black "Seder, Mohammed"]
[Result "1-0"]
[Board "111"]
[TimeControl "180+1"]
[WhiteFideId "34146919"]
[BlackFideId "11505567"]
[WhiteElo "2445"]
[BlackElo "2358"]
[WhiteTeam "RUS"]
[BlackTeam "PLE"]
[WhiteClock "0:01:02"]
[BlackClock "0:00:18"]

1. d4 {[%clk 0:02:59]}  e6 {[%clk 0:03:00]} 2. e4 {[%clk 0:02:58]}  d5 {[%clk 0:03:01]} 3. e5 {[%clk 0:02:59]}  c5 {[%clk 0:03:02]} 4. c3 {[%clk 0:02:59]}  Nc6 {[%clk 0:03:02]} 5. Nf3 {[%clk 0:03:00]}  Qb6 {[%clk 0:03:02]} 6. a3 {[%clk 0:02:58]}  a6 {[%clk 0:02:55]} 7. b4 {[%clk 0:02:54]}  cxd4 {[%clk 0:02:54]} 8. cxd4 {[%clk 0:02:55]}  Bd7 {[%clk 0:02:52]} 9. Bb2 {[%clk 0:02:45]}  Nge7 {[%clk 0:02:41]} 10. Bd3 {[%clk 0:02:45]}  Nf5 {[%clk 0:02:34]} 11. Bxf5 {[%clk 0:02:45]}  exf5 {[%clk 0:02:35]} 12. O-O {[%clk 0:02:46]}  Be7 {[%clk 0:02:33]} 13. Re1 {[%clk 0:02:45]}  O-O {[%clk 0:02:32]} 14. Nbd2 {[%clk 0:02:43]}  Be6 {[%clk 0:02:09]} 15. Qb3 {[%clk 0:02:38]}  a5 {[%clk 0:02:07]} 16. b5 {[%clk 0:02:38]}  Na7 {[%clk 0:02:04]} 17. a4 {[%clk 0:02:38]}  Nc8 {[%clk 0:01:51]} 18. Nf1 {[%clk 0:02:37]}  Qd8 {[%clk 0:01:49]} 19. Ne3 {[%clk 0:02:36]}  Nb6 {[%clk 0:01:49]} 20. Qd3 {[%clk 0:02:36]}  Qd7 {[%clk 0:01:41]} 21. Nd2 {[%clk 0:02:32]}  f4 {[%clk 0:01:35]} 22. Nef1 {[%clk 0:02:28]}  Nc4 {[%clk 0:01:32]} 23. Bc3 {[%clk 0:02:21]}  Bb4 {[%clk 0:01:15]} 24. Rec1 {[%clk 0:02:19]}  Rfc8 {[%clk 0:01:11]} 25. Qf3 {[%clk 0:02:16]}  g5 {[%clk 0:00:38]} 26. Qh5 {[%clk 0:02:12]}  Be7 {[%clk 0:00:26]} 27. h3 {[%clk 0:02:12]}  b6 {[%clk 0:00:20]} 28. Nf3 {[%clk 0:02:13]}  g4 {[%clk 0:00:17]} 29. Ng5 {[%clk 0:02:10]}  f6 {[%clk 0:00:12]} 30. Qxh7+ {[%clk 0:02:06]}  Kf8 {[%clk 0:00:11]} 31. Qh8+ {[%clk 0:01:42]}  Bg8 {[%clk 0:00:12]} 32. Qh6+ {[%clk 0:01:43]}  Ke8 {[%clk 0:00:11]} 33. exf6 {[%clk 0:01:43]}  Bf8 {[%clk 0:00:12]} 34. Qg6+ {[%clk 0:01:40]}  Bf7 {[%clk 0:00:12]} 35. Re1+ {[%clk 0:01:37]}  Ne3 {[%clk 0:00:13]} 36. Nxf7 {[%clk 0:01:33]}  Qxf7 {[%clk 0:00:13]} 37. Qxf7+ {[%clk 0:01:34]}  Kxf7 {[%clk 0:00:14]} 38. Nxe3 {[%clk 0:01:28]}  fxe3 {[%clk 0:00:13]} 39. Rxe3 {[%clk 0:01:28]}  Bh6 {[%clk 0:00:13]} 40. Rd3 {[%clk 0:01:23]}  gxh3 {[%clk 0:00:12]} 41. Rxh3 {[%clk 0:01:21]}  Bg5 {[%clk 0:00:12]} 42. Rf3 {[%clk 0:01:10]}  Bxf6 {[%clk 0:00:11]} 43. Bd2 {[%clk 0:01:10]}  Kg6 {[%clk 0:00:10]} 44. Be3 {[%clk 0:01:10]}  Rc4 {[%clk 0:00:10]} 45. Rf4 {[%clk 0:01:05]}  Rac8 {[%clk 0:00:09]} 46. g4 {[%clk 0:01:00]}  Rc1+ {[%clk 0:00:09]} 47. Rxc1 {[%clk 0:00:59]}  Rxc1+ {[%clk 0:00:10]} 48. Bxc1 {[%clk 0:01:00]}  Bg5 {[%clk 0:00:10]} 49. Rf5 {[%clk 0:00:59]}  Bxc1 {[%clk 0:00:10]} 50. Rxd5 {[%clk 0:00:58]}  Bb2 {[%clk 0:00:11]} 51. Rd6+ {[%clk 0:00:58]}  Kg5 {[%clk 0:00:11]} 52. Rxb6 {[%clk 0:00:59]}  Bxd4 {[%clk 0:00:12]} 53. Ra6 {[%clk 0:00:59]}  Kxg4 {[%clk 0:00:12]} 54. b6 {[%clk 0:00:58]}  Kf3 {[%clk 0:00:11]} 55. b7 {[%clk 0:00:57]}  Bxf2+ {[%clk 0:00:12]} 56. Kf1 {[%clk 0:00:55]}  Bg3 {[%clk 0:00:13]} 57. Rxa5 {[%clk 0:00:54]}  Ke4 {[%clk 0:00:12]} 58. Rb5 {[%clk 0:00:53]}  Bb8 {[%clk 0:00:11]} 59. Rc5 {[%clk 0:00:53]}  Kd4 {[%clk 0:00:10]} 60. Rc8 {[%clk 0:00:54]}  Ba7 {[%clk 0:00:09]} 61. b8=Q {[%clk 0:00:54]}  Bxb8 {[%clk 0:00:10]} 62. Rxb8 {[%clk 0:00:54]}  Kc5 {[%clk 0:00:10]} 63. a5 {[%clk 0:00:55]}  Kc6 {[%clk 0:00:11]} 64. Rb1 {[%clk 0:00:55]}  Kc7 {[%clk 0:00:12]} 65. a6 {[%clk 0:00:56]}  Kc8 {[%clk 0:00:13]} 66. a7 {[%clk 0:00:57]}  Kc7 {[%clk 0:00:14]} 67. a8=Q {[%clk 0:00:58]}  Kd6 {[%clk 0:00:15]} 68. Qa2 {[%clk 0:00:58]}  Kc5 {[%clk 0:00:16]} 69. Qc2+ {[%clk 0:00:59]}  Kd4 {[%clk 0:00:16]} 70. Rd1+ {[%clk 0:01:00]}  Ke3 {[%clk 0:00:17]} 71. Qe2+ {[%clk 0:01:00]}  Kf4 {[%clk 0:00:18]} 72. Rd3 {[%clk 0:01:00]}  Kf5 {[%clk 0:00:19]} 73. Rf3+ {[%clk 0:01:00]}  Kg4 {[%clk 0:00:18]} 74. Qg2+ {[%clk 0:01:01]}  Kh4 {[%clk 0:00:18]} 75. Rh3# {[%clk 0:01:02]} 1-0

[Event "December 5 Early 2023"]
[Site "https://www.chess.com"]
[Date "2023.12.05"]
[Round "11"]
[White "Rodriguez Santiago, Jaime"]
[Black "Azar, Sebastien"]
[Result "0-1"]
[Board "116"]
[TimeControl "180+1"]
[WhiteFideId "3100898"]
[BlackFideId "2640198"]
[WhiteElo "2285"]
[BlackElo "2423"]
[WhiteTeam "PUR"]
[BlackTeam "CAN"]
[WhiteClock "0:01:52"]
[BlackClock "0:02:25"]

1. d4 {[%clk 0:03:00]}  d5 {[%clk 0:02:58]} 2. c4 {[%clk 0:03:01]}  c6 {[%clk 0:02:57]} 3. Nc3 {[%clk 0:03:01]}  Nf6 {[%clk 0:02:57]} 4. cxd5 {[%clk 0:03:01]}  cxd5 {[%clk 0:02:58]} 5. Bf4 {[%clk 0:03:01]}  Nc6 {[%clk 0:02:59]} 6. e3 {[%clk 0:03:02]}  a6 {[%clk 0:02:59]} 7. Be2 {[%clk 0:03:01]}  Bf5 {[%clk 0:02:58]} 8. g4 {[%clk 0:03:02]}  Bg6 {[%clk 0:02:56]} 9. h4 {[%clk 0:03:02]}  h5 {[%clk 0:02:56]} 10. g5 {[%clk 0:03:02]}  Ne4 {[%clk 0:02:56]} 11. Bf3 {[%clk 0:03:02]}  Qa5 {[%clk 0:02:52]} 12. Ne2 {[%clk 0:03:02]}  e6 {[%clk 0:02:52]} 13. Kf1 {[%clk 0:03:01]}  Nxc3 {[%clk 0:02:42]} 14. Nxc3 {[%clk 0:03:00]}  Be7 {[%clk 0:02:42]} 15. Kg2 {[%clk 0:02:54]}  Rc8 {[%clk 0:02:36]} 16. a3 {[%clk 0:02:50]}  b5 {[%clk 0:02:32]} 17. b4 {[%clk 0:02:34]}  Qd8 {[%clk 0:02:30]} 18. Na2 {[%clk 0:02:23]}  Bd6 {[%clk 0:02:28]} 19. Bxd6 {[%clk 0:02:17]}  Qxd6 {[%clk 0:02:29]} 20. Nc1 {[%clk 0:02:17]}  Ne7 {[%clk 0:02:28]} 21. Nb3 {[%clk 0:01:52]}  Bc2 {[%clk 0:02:25]} 0-1

[Event "December 5 Early 2023"]
[Site "https://www.chess.com"]
[Date "2023.12.05"]
[Round "11"]
[White "Balla, Tamas-Kristof"]
[Black "Golubenko, Valentina"]
[Result "1-0"]
[Board "118"]
[TimeControl "180+1"]
[WhiteFideId "1208497"]
[BlackFideId "4501993"]
[WhiteElo "2410"]
[BlackElo "2228"]
[WhiteTeam "ROU"]
[BlackTeam "CRO"]
[WhiteClock "0:01:15"]
[BlackClock "0:00:00"]

1. e4 {[%clk 0:03:00]}  e6 {[%clk 0:02:59]} 2. d4 {[%clk 0:03:00]}  d5 {[%clk 0:02:57]} 3. Nd2 {[%clk 0:03:01]}  c5 {[%clk 0:02:57]} 4. exd5 {[%clk 0:03:00]}  exd5 {[%clk 0:02:57]} 5. Ngf3 {[%clk 0:02:59]}  Nf6 {[%clk 0:02:57]} 6. Bb5+ {[%clk 0:02:59]}  Bd7 {[%clk 0:02:55]} 7. Bxd7+ {[%clk 0:02:59]}  Nbxd7 {[%clk 0:02:55]} 8. O-O {[%clk 0:02:59]}  Be7 {[%clk 0:02:55]} 9. dxc5 {[%clk 0:02:59]}  Nxc5 {[%clk 0:02:52]} 10. Nb3 {[%clk 0:02:59]}  O-O {[%clk 0:02:49]} 11. Bg5 {[%clk 0:02:58]}  Nce4 {[%clk 0:02:46]} 12. Bh4 {[%clk 0:02:55]}  Rc8 {[%clk 0:02:42]} 13. c3 {[%clk 0:02:55]}  Qb6 {[%clk 0:02:37]} 14. Bxf6 {[%clk 0:02:43]}  Nxf6 {[%clk 0:02:37]} 15. Re1 {[%clk 0:02:41]}  Bd6 {[%clk 0:02:28]} 16. Nfd4 {[%clk 0:02:37]}  a5 {[%clk 0:02:22]} 17. Nf5 {[%clk 0:02:33]}  Rfd8 {[%clk 0:02:01]} 18. Qf3 {[%clk 0:02:15]}  a4 {[%clk 0:01:41]} 19. Nbd4 {[%clk 0:02:07]}  Qxb2 {[%clk 0:01:35]} 20. Rab1 {[%clk 0:01:45]}  Qxc3 {[%clk 0:01:28]} 21. Nxd6 {[%clk 0:01:32]}  Qxf3 {[%clk 0:01:06]} 22. gxf3 {[%clk 0:01:28]}  Rxd6 {[%clk 0:01:06]} 23. Nf5 {[%clk 0:01:28]}  Rdd8 {[%clk 0:00:23]} 24. Ne7+ {[%clk 0:01:26]}  Kf8 {[%clk 0:00:23]} 25. Nxc8 {[%clk 0:01:27]}  Rxc8 {[%clk 0:00:23]} 26. Rxb7 {[%clk 0:01:27]}  Nh5 {[%clk 0:00:14]} 27. Ree7 {[%clk 0:01:23]}  Rc1+ {[%clk 0:00:12]} 28. Kg2 {[%clk 0:01:23]}  Nf4+ {[%clk 0:00:12]} 29. Kg3 {[%clk 0:01:23]}  Nh5+ {[%clk 0:00:11]} 30. Kh4 {[%clk 0:01:22]}  g6 {[%clk 0:00:09]} 31. Rxf7+ {[%clk 0:01:21]}  Ke8 {[%clk 0:00:09]} 32. Rxh7 {[%clk 0:01:20]}  Rc4+ {[%clk 0:00:05]} 33. Kg5 {[%clk 0:01:17]}  Rg4+ {[%clk 0:00:00]} 34. fxg4 {[%clk 0:01:15]} 1-0